fUST/lending_fUST_20240127
["ID","MTS","AMOUNT","RATE_DAILY","PERIOD"]
[312841360,1706333440783,-500.0,0.00031071,2]
[312841361,1706333440793,-500.0,0.00031071,2]
[312841362,1706333440802,-500.0,0.00031071,2]
[312841363,1706333440811,-500.0,0.00031071,2]
[312841364,1706333440821,-500.0,0.00031071,2]
[312841365,1706333440830,-500.0,0.00031071,2]
[312841366,1706333440839,-500.0,0.00031071,2]
[312841367,1706333440849,-500.0,0.00031071,2]
[312841368,1706333440858,-500.0,0.00031071,2]
[312841369,1706333440868,-500.0,0.00031071,2]
[312841370,1706333440877,-500.0,0.00031071,2]
[312841371,1706333440886,-500.0,0.00031071,2]
[312841372,1706333440896,-553.52650809,0.00031071,2]
[312841373,1706333440906,-500.0,0.00031071,2]
[312841374,1706333440915,-1366.24051093,0.00031071,2]
[312841375,1706333440925,-1366.24051093,0.00031071,2]
[312841376,1706333440934,-1366.24051093,0.00031071,2]
[312841377,1706333440944,-1366.24051093,0.00031071,2]
[312841378,1706333440954,-1366.24051093,0.00031071,2]
[312841379,1706333440963,-1366.24051093,0.00031071,2]
[312841380,1706333440973,-1366.24051093,0.00031071,2]
[312841381,1706333440983,-1366.24051093,0.00031071,2]
[312841382,1706333440993,-1366.24051093,0.00031071,2]
[312841383,1706333441002,-1366.24051093,0.00031071,2]
[312841384,1706333441012,-1366.24051093,0.00031071,2]
[312841385,1706333441021,-1366.24051093,0.00031071,2]
[312841386,1706333441031,-1366.24051093,0.00031071,2]
[312841387,1706333441041,-1366.24051093,0.00031071,2]
[312841388,1706333441051,-1366.24051093,0.00031071,2]
[312841389,1706333441060,-1366.24051093,0.00031071,2]
[312841390,1706333441069,-1366.24051088,0.00031071,2]
[312841391,1706333441079,-500.0,0.00031071,2]
[312841392,1706333441088,-234.38710624,0.00031072,3]
[312841393,1706333441097,-10706.4386164,0.00031072,4]
[312841395,1706333441484,-155.0,0.00028578,2]
[312841396,1706333441493,-361.850155,0.00031068,2]
[312841415,1706333446412,-306.68,0.00030971,2]
[312841521,1706335122013,280.0,0.00022857,7]
[312841529,1706335419107,216.503195,0.00017914,2]
[312841530,1706335422994,280.0,0.00022827,7]
[312841543,1706335605793,2074.9947044,0.00017857,2]
[312841545,1706335634417,500.82476263,0.00017857,2]
[312841547,1706335650425,260.92970133,0.00017857,2]
[312841548,1706335658255,2046.74763664,0.00018661,2]
[312841549,1706335670518,260.92970133,0.00017857,2]
[312841551,1706335688426,260.92970133,0.00017857,2]
[312841552,1706335721835,221.65183094,0.0002257,7]
[312841553,1706335721863,58.34816906,0.0002257,7]
[312841556,1706335795516,275.41863263,0.0001855,2]
[312841591,1706335832604,-199.37233951,0.00018645,2]
[312841594,1706335832614,-481.20146048,0.00018645,2]
[312841599,1706335832652,-19234.54292276,0.00018645,2]
[312841600,1706335832662,-5212.65916057,0.00018646,2]
[312841603,1706335832671,-3921.59583547,0.00018646,2]
[312841606,1706335832680,-7966.81883748,0.00018646,2]
[312841608,1706335832690,-154.98450155,0.00018646,2]
[312841609,1706335832699,-154.98450155,0.00018647,2]
[312841610,1706335832708,-742.1289388,0.00018647,2]
[312841611,1706335832717,-20915.89787581,0.00018647,2]
[312841612,1706335832725,-18262.50451681,0.00018648,2]
[312841613,1706335832738,-25769.07582307,0.00018648,2]
[312841640,1706335839188,-1697.2441966,0.00018645,2]
[312841641,1706335839197,-5256.79245514,0.00018645,2]
[312841642,1706335839209,-1738.9603863,0.00018645,2]
[312841643,1706335839221,-11921.47765311,0.00018645,2]
[312841644,1706335839231,-37224.75113672,0.00018648,2]
[312841645,1706335839243,-154.98450155,0.00018648,2]
[312841646,1706335839252,-688.5172537,0.00018648,2]
[312841647,1706335839261,-36993.50130964,0.00018649,2]
[312841648,1706335839270,-471.05101678,0.00018657,2]
[312841649,1706335839279,-5558.31508145,0.00018661,2]
[312841650,1706335839288,-2105.3133158,0.00018849,2]
[312841651,1706335839299,-928.74622268,0.00018891,2]
[312841652,1706335839309,-4796.74078989,0.00018891,2]
[312841653,1706335839321,-689.41556789,0.00018897,2]
[312841654,1706335839330,-1583.7528565,0.00019,2]
[312841655,1706335839341,-167.246854,0.00019178,2]
[312841656,1706335839352,-154.98450155,0.0002,2]
[312841657,1706335839362,-1199.09633829,0.0002,2]
[312841658,1706335839371,-154.98450155,0.0002,2]
[312841659,1706335839380,-679.3029243,0.0002,2]
[312841660,1706335839390,-1327.42997044,0.0002,2]
[312841661,1706335839400,-2299.98348293,0.00020269,2]
[312841662,1706335839410,-200.0,0.00020518,2]
[312841663,1706335839420,-330.07156533,0.00020985,2]
[312841664,1706335839429,-1270.89180505,0.00020985,2]
[312841665,1706335839439,-155.11047866,0.00020985,2]
[312841666,1706335839449,-2001.80790077,0.00020985,2]
[312841667,1706335839458,-225.6972297,0.00020985,2]
[312841668,1706335839469,-3292.57651785,0.00020985,2]
[312841669,1706335839479,-200.0,0.00020985,2]
[312841670,1706335839489,-154.98450155,0.00020985,2]
[312841671,1706335839498,-155.32133205,0.00020985,2]
[312841672,1706335839507,-548.99195144,0.00020986,2]
[312841673,1706335839517,-632.96828925,0.00020997,2]
[312841674,1706335839527,-214.30947879,0.00020997,2]
[312841675,1706335839536,-1296.57964106,0.00020997,2]
[312841676,1706335839547,-595.27318689,0.00020997,2]
[312841677,1706335839556,-1242.89012812,0.00020997,2]
[312841678,1706335839567,-190.04128751,0.00020997,2]
[312841679,1706335839577,-197.01943793,0.00020997,2]
[312841680,1706335839586,-230.3498358,0.00020997,2]
[312841681,1706335839595,-565.83747829,0.00020997,2]
[312841682,1706335839604,-155.03202346,0.00020997,2]
[312841683,1706335839613,-155.14642806,0.00020997,2]
[312841684,1706335839622,-156.58407097,0.00020997,2]
[312841685,1706335839632,-387.16006083,0.00020997,2]
[312841686,1706335839641,-161.51858749,0.00020997,2]
[312841687,1706335839650,-273.47586629,0.00020997,2]
[312841688,1706335839659,-156.2843454,0.00020997,2]
[312841689,1706335839669,-524.00131321,0.00020997,2]
[312841690,1706335839678,-1742.02717057,0.00020997,2]
[312841691,1706335839688,-155.46554963,0.00020997,2]
[312841692,1706335839698,-159.13769746,0.00020997,2]
[312841693,1706335839708,-171.49500219,0.00020997,2]
[312841694,1706335839717,-155.32067987,0.00020997,2]
[312841695,1706335839728,-167.32933478,0.00020997,2]
[312841696,1706335839741,-155.23807165,0.00020998,2]
[312841697,1706335839750,-621.60436449,0.00020998,2]
[312841698,1706335839760,-155.41458436,0.00020999,2]
[312841699,1706335839770,-2081.23072938,0.00020999,2]
[312841700,1706335839779,-233.19482387,0.00021,2]
[312841701,1706335839788,-30977.36086633,0.00021,2]
[312841702,1706335839797,-37128.73957762,0.00021,2]
[312841703,1706335839806,-194.51343232,0.00021,2]
[312841704,1706335839816,-9869.12528061,0.00021,2]
[312841705,1706335839825,-275.41863263,0.00021033,2]
[312841706,1706335839834,-166.666666,0.00021918,2]
[312841707,1706335839843,-327.61566675,0.00022,2]
[312841708,1706335839852,-164.09330822,0.00022,2]
[312841709,1706335839861,-3971.0863798,0.00022,2]
[312841710,1706335839870,-427.05321488,0.00022,2]
[312841711,1706335839879,-166.666666,0.00022431,2]
[312841712,1706335839890,-300.0,0.0002257,2]
[312841713,1706335839901,-260.92970133,0.0002257,2]
[312841714,1706335839998,-303.74433034,0.00022827,2]
[312841715,1706335840018,-8381.37776736,0.00022857,2]
[312841716,1706335840028,-166.666666,0.00022944,2]
[312841717,1706335840038,-1419.08911956,0.00023,2]
[312841718,1706335840049,-9947.92180076,0.00023,2]
[312841719,1706335840058,-166.666666,0.00023456,2]
[312841720,1706335840068,-275.41863263,0.00023515,2]
[312841721,1706335840078,-166.666666,0.00023969,2]
[312841722,1706335840088,-166.666666,0.00024482,2]
[312841723,1706335840097,-391.0,0.00024827,7]
[312841724,1706335840106,-3724.05801455,0.00025,2]
[312841725,1706335840116,-7389.4786433,0.00025,2]
[312841726,1706335840125,-851.06760342,0.00025,2]
[312841727,1706335840135,-156.19598509,0.00025,2]
[312841728,1706335840144,-50000.0,0.00025264,2]
[312841729,1706335840153,-151.0,0.00025264,2]
[312841730,1706335840163,-151.0,0.00025264,2]
[312841731,1706335840172,-151.0,0.00025264,2]
[312841732,1706335840182,-493.127102,0.00025264,2]
[312841733,1706335840191,-493.127102,0.00025264,2]
[312841734,1706335840201,-740.595581,0.00025264,2]
[312841735,1706335840210,-740.595581,0.00025264,2]
[312841736,1706335840219,-500.0,0.00025264,2]
[312841737,1706335840229,-500.0,0.00025264,2]
[312841738,1706335840240,-151.0,0.00025264,2]
[312841739,1706335840250,-8533.07378,0.00025264,2]
[312841740,1706335840260,-8533.07378,0.00025264,2]
[312841741,1706335840270,-275.41863263,0.00025998,2]
[312841742,1706335840279,-620.03175103,0.0002673,2]
[312841743,1706335840288,-216.503195,0.00026872,2]
[312841744,1706335840300,-290.6944281,0.00027,2]
[312841745,1706335840310,-200.0,0.0002731,15]
[312841746,1706335840320,-348.0,0.0002731,15]
[312841747,1706335840329,-4392.34,0.00027397,3]
[312841748,1706335840339,-3660.28,0.00027397,3]
[312841749,1706335840348,-3050.24,0.00027397,3]
[312841750,1706335840358,-2541.86,0.00027397,3]
[312841751,1706335840368,-556.2457431,0.00028,2]
[312841752,1706335840377,-234.38710623,0.00028022,3]
[312841753,1706335840387,-50000.0,0.00028022,5]
[312841754,1706335840397,-151.743959,0.00028022,2]
[312841755,1706335840406,-151.0,0.00028022,2]
[312841756,1706335840417,-151.0,0.00028022,2]
[312841757,1706335840427,-211.800487,0.00028022,2]
[312841758,1706335840436,-211.800487,0.00028022,2]
[312841759,1706335840447,-151.0,0.00028022,2]
[312841760,1706335840456,-219.366914,0.00028022,2]
[312841761,1706335840466,-151.0,0.00028022,2]
[312841762,1706335840476,-151.0,0.00028022,2]
[312841763,1706335840488,-493.127102,0.00028022,2]
[312841764,1706335840497,-493.127102,0.00028022,2]
[312841765,1706335840507,-740.595581,0.00028022,2]
[312841766,1706335840516,-740.595581,0.00028022,2]
[312841767,1706335840527,-500.0,0.00028022,2]
[312841768,1706335840537,-500.0,0.00028022,2]
[312841769,1706335840547,-151.0,0.00028022,2]
[312841770,1706335840558,-8533.07378,0.00028022,2]
[312841771,1706335840567,-8533.07378,0.00028022,2]
[312841772,1706335840577,-620.00158755,0.00028066,2]
[312841773,1706335840587,-275.41863263,0.0002848,2]
[312841774,1706335840598,-4017.99473219,0.00028557,2]
[312841775,1706335840608,-181.60712526,0.00028579,2]
[312841776,1706335840617,-50000.0,0.0002858,5]
[312841777,1706335840626,-151.0,0.0002858,2]
[312841778,1706335840635,-151.0,0.0002858,2]
[312841779,1706335840645,-211.800487,0.0002858,2]
[312841780,1706335840654,-211.800487,0.0002858,2]
[312841781,1706335840663,-151.0,0.0002858,2]
[312841782,1706335840673,-151.0,0.0002858,2]
[312841783,1706335840682,-151.0,0.0002858,2]
[312841784,1706335840691,-493.127102,0.0002858,2]
[312841785,1706335840700,-493.127102,0.0002858,2]
[312841786,1706335840710,-740.595581,0.0002858,2]
[312841787,1706335840719,-740.595581,0.0002858,2]
[312841788,1706335840728,-500.0,0.0002858,2]
[312841789,1706335840738,-500.0,0.0002858,2]
[312841790,1706335840747,-155.258726,0.0002858,2]
[312841791,1706335840756,-8533.07378,0.0002858,2]
[312841792,1706335840765,-8533.07378,0.0002858,2]
[312841793,1706335840775,-50000.0,0.00028581,5]
[312841794,1706335840784,-8533.07378,0.00028581,2]
[312841795,1706335840793,-8533.07378,0.00028581,2]
[312841796,1706335840803,-151.0,0.00028582,2]
[312841797,1706335840812,-151.0,0.00028582,2]
[312841798,1706335840821,-151.0,0.00028582,2]
[312841799,1706335840830,-211.800487,0.00028582,2]
[312841800,1706335840839,-211.800487,0.00028582,2]
[312841801,1706335840848,-154.98450155,0.00029,2]
[312841802,1706335840857,-1933.42796518,0.00029,2]
[312841803,1706335840866,-150.98490151,0.00029374,30]
[312841804,1706335840876,-620.00007938,0.0002947,2]
[312841806,1706335840885,-3122.86887342,0.000295,30]
[312841807,1706335840894,-150.98490151,0.00029974,7]
[312841808,1706335840903,-172.73238116,0.00029999,2]
[312841809,1706335840912,-155.0,0.0003,2]
[312841810,1706335840921,-195.57103754,0.0003,2]
[312841811,1706335840930,-155.0,0.0003,4]
[312841812,1706335840939,-2072.0,0.0003,2]
[312841813,1706335840950,-2733.32904929,0.0003,2]
[312841814,1706335840959,-2196.27781557,0.0003,2]
[312841815,1706335840968,-624.06787466,0.0003,14]
[312841816,1706335840978,-130235.50188057,0.0003,4]
[312841817,1706335840988,-2373.62501968,0.0003,2]
[312841818,1706335840999,-689.09430435,0.0003,4]
[312841819,1706335841011,-151.0,0.0003,2]
[312841820,1706335841020,-151.0,0.0003,2]
[312841821,1706335841029,-151.0,0.0003,2]
[312841822,1706335841039,-211.800487,0.0003,2]
[312841823,1706335841048,-211.800487,0.0003,2]
[312841824,1706335841057,-176.138398,0.0003,2]
[312841825,1706335841066,-151.0,0.0003,2]
[312841826,1706335841075,-151.0,0.0003,2]
[312841827,1706335841086,-493.127102,0.0003,2]
[312841828,1706335841096,-493.127102,0.0003,2]
[312841829,1706335841105,-740.595581,0.0003,2]
[312841830,1706335841114,-740.595581,0.0003,2]
[312841831,1706335841123,-500.0,0.0003,2]
[312841832,1706335841133,-500.0,0.0003,2]
[312841833,1706335841142,-8533.07378,0.0003,2]
[312841834,1706335841151,-8533.07378,0.0003,2]
[312841835,1706335841160,-417.8948152,0.00030036,3]
[312841836,1706335841169,-200.0,0.00030041,15]
[312841837,1706335841178,-200.0,0.00030041,15]
[312841838,1706335841187,-368.0,0.00030041,15]
[312841839,1706335841197,-151.0,0.00030063,2]
[312841840,1706335841206,-311.78878247,0.00030135,2]
[312841841,1706335841216,-373.73938568,0.00030135,2]
[312841842,1706335841225,-500.0,0.00030135,2]
[312841843,1706335841235,-500.0,0.00030135,2]
[312841844,1706335841244,-500.0,0.00030135,2]
[312841845,1706335841253,-500.0,0.00030135,2]
[312841846,1706335841262,-500.0,0.00030135,2]
[312841847,1706335841271,-500.0,0.00030135,2]
[312841848,1706335841280,-500.0,0.00030135,2]
[312841849,1706335841289,-500.0,0.00030135,2]
[312841850,1706335841298,-500.0,0.00030135,2]
[312841851,1706335841307,-500.0,0.00030135,2]
[312841852,1706335841316,-500.0,0.00030135,2]
[312841853,1706335841325,-500.0,0.00030135,2]
[312841854,1706335841334,-500.0,0.00030135,2]
[312841855,1706335841343,-297.72143804,0.00030135,2]
[312841856,1706335841353,-321.69028241,0.00030135,2]
[312841857,1706335841363,-500.0,0.00030135,2]
[312841858,1706335841372,-500.0,0.00030135,2]
[312841859,1706335841382,-500.0,0.00030135,2]
[312841860,1706335841391,-500.0,0.00030135,2]
[312841861,1706335841400,-500.0,0.00030135,2]
[312841862,1706335841410,-500.0,0.00030135,2]
[312841863,1706335841419,-500.0,0.00030135,2]
[312841864,1706335841429,-500.0,0.00030135,2]
[312841865,1706335841438,-532.71939461,0.00030135,2]
[312841866,1706335841448,-500.0,0.00030135,2]
[312841867,1706335841457,-500.0,0.00030135,2]
[312841868,1706335841466,-500.0,0.00030135,2]
[312841869,1706335841476,-500.0,0.00030135,2]
[312841870,1706335841486,-500.0,0.00030135,2]
[312841871,1706335841496,-500.0,0.00030135,2]
[312841872,1706335841505,-500.0,0.00030135,2]
[312841873,1706335841516,-500.0,0.00030135,2]
[312841874,1706335841525,-500.0,0.00030135,2]
[312841875,1706335841534,-500.0,0.00030135,2]
[312841876,1706335841544,-176.60188357,0.00030135,2]
[312841877,1706335841553,-500.0,0.00030135,2]
[312841878,1706335841563,-250.3795459,0.00030136,2]
[312841879,1706335841572,-500.0,0.00030136,2]
[312841880,1706335841582,-500.0,0.00030136,2]
[312841881,1706335841591,-500.0,0.00030136,2]
[312841882,1706335841601,-500.0,0.00030136,2]
[312841883,1706335841611,-500.0,0.00030136,2]
[312841884,1706335841621,-500.0,0.00030136,2]
[312841885,1706335841630,-500.0,0.00030136,2]
[312841886,1706335841639,-2325.69,0.00030136,2]
[312841887,1706335841649,-151.0,0.00030136,2]
[312841888,1706335841661,-151.0,0.00030136,2]
[312841889,1706335841672,-151.0,0.00030136,2]
[312841890,1706335841681,-628.77850801,0.00030136,2]
[312841891,1706335841692,-500.0,0.00030136,2]
[312841892,1706335841701,-613.26287011,0.00030136,2]
[312841893,1706335841712,-151.0,0.00030136,2]
[312841894,1706335841721,-208.97833,0.00030136,2]
[312841895,1706335841730,-524.90431843,0.00030136,2]
[312841896,1706335841740,-155.94086993,0.00030136,2]
[312841897,1706335841749,-151.0210052,0.00030136,2]
[312841898,1706335841758,-500.0,0.00030136,2]
[312841899,1706335841767,-1318.32,0.00030136,2]
[312841900,1706335841776,-500.0,0.00030136,2]
[312841901,1706335841785,-1342.75,0.00030136,2]
[312841902,1706335841794,-504.20028555,0.00030136,2]
[312841903,1706335841803,-500.0,0.00030136,2]
[312841904,1706335841812,-505.40284302,0.00030136,2]
[312841905,1706335841821,-271.60327946,0.00030136,2]
[312841906,1706335841903,-515.8552906,0.00030136,2]
[312841907,1706335841913,-560.3626558,0.00030136,2]
[312841908,1706335841922,-335.67956552,0.00030136,2]
[312841909,1706335841932,-500.0,0.00030136,2]
[312841910,1706335841940,-500.0,0.00030136,2]
[312841911,1706335841949,-500.0,0.00030136,2]
[312841912,1706335841959,-500.0,0.00030136,2]
[312841913,1706335841970,-500.0,0.00030136,2]
[312841914,1706335841980,-500.0,0.00030136,2]
[312841915,1706335841990,-500.0,0.00030136,2]
[312841916,1706335841999,-500.0,0.00030136,2]
[312841917,1706335842011,-605.88966438,0.00030136,2]
[312841918,1706335842022,-2143.52,0.00030136,2]
[312841919,1706335842032,-1151.32,0.00030136,2]
[312841920,1706335842041,-500.0,0.00030136,2]
[312841921,1706335842051,-515.50133898,0.00030136,2]
[312841922,1706335842061,-500.0,0.00030136,2]
[312841923,1706335842070,-500.0,0.00030136,2]
[312841924,1706335842083,-184.21200169,0.00030136,2]
[312841925,1706335842092,-500.0,0.00030136,2]
[312841926,1706335842102,-609.62693908,0.00030136,2]
[312841927,1706335842113,-500.0,0.00030136,2]
[312841928,1706335842124,-500.0,0.00030136,2]
[312841929,1706335842134,-603.91728063,0.00030136,2]
[312841930,1706335842143,-500.0,0.00030136,2]
[312841931,1706335842152,-500.0,0.00030136,2]
[312841932,1706335842161,-500.0,0.00030136,2]
[312841933,1706335842171,-753.45,0.00030136,2]
[312841934,1706335842181,-500.0,0.00030136,2]
[312841935,1706335842191,-500.0,0.00030136,2]
[312841936,1706335842200,-151.98601287,0.00030136,2]
[312841937,1706335842209,-584.94282053,0.00030136,2]
[312841938,1706335842218,-454.86416052,0.00030136,2]
[312841939,1706335842228,-1378.92,0.00030136,2]
[312841940,1706335842239,-500.0,0.00030136,2]
[312841941,1706335842248,-500.0,0.00030136,2]
[312841942,1706335842257,-211.0615559,0.00030136,30]
[312841943,1706335842267,-500.0,0.00030136,2]
[312841944,1706335842277,-500.0,0.00030136,2]
[312841945,1706335842286,-500.0,0.00030136,2]
[312841946,1706335842295,-502.98959405,0.00030136,7]
[312841947,1706335842304,-10000.0,0.00030136,10]
[312841948,1706335842314,-200.62236837,0.00030136,2]
[312841949,1706335842323,-550.10407402,0.00030136,2]
[312841950,1706335842332,-533.00066781,0.00030136,2]
[312841951,1706335842341,-500.0,0.00030136,2]
[312841952,1706335842351,-524.05281637,0.00030136,2]
[312841953,1706335842359,-500.0,0.00030136,2]
[312841954,1706335842369,-500.0,0.00030136,2]
[312841955,1706335842378,-500.0,0.00030136,2]
[312841956,1706335842387,-500.0,0.00030136,2]
[312841957,1706335842397,-500.0,0.00030136,2]
[312841958,1706335842406,-500.0,0.00030136,2]
[312841959,1706335842416,-500.0,0.00030136,2]
[312841960,1706335842425,-500.0,0.00030136,2]
[312841961,1706335842434,-894.55,0.00030136,2]
[312841962,1706335842444,-500.0,0.00030136,2]
[312841963,1706335842453,-192.05989566,0.00030136,2]
[312841964,1706335842462,-1747.28,0.00030136,2]
[312841965,1706335842471,-533.51635224,0.00030136,2]
[312841966,1706335842480,-500.0,0.00030136,2]
[312841967,1706335842490,-497.28316488,0.00030136,2]
[312841968,1706335842500,-500.0,0.00030136,2]
[312841969,1706335842509,-500.0,0.00030136,2]
[312841970,1706335842518,-499.99999783,0.00030136,2]
[312841971,1706335842527,-500.0,0.00030136,14]
[312841972,1706335842536,-1732.06,0.00030136,2]
[312841973,1706335842545,-1732.06,0.00030136,2]
[312841974,1706335842555,-1732.06,0.00030136,2]
[312841975,1706335842565,-1732.06,0.00030136,2]
[312841976,1706335842574,-1732.06,0.00030136,2]
[312841977,1706335842583,-500.0,0.00030136,2]
[312841978,1706335842595,-1732.06,0.00030136,2]
[312841979,1706335842604,-502.01,0.00030136,2]
[312841980,1706335842613,-1732.06,0.00030136,2]
[312841981,1706335842623,-1732.06,0.00030136,2]
[312841982,1706335842633,-500.0,0.00030136,2]
[312841983,1706335842642,-261.68946611,0.00030136,2]
[312841984,1706335842651,-500.0,0.00030136,2]
[312841985,1706335842660,-500.0,0.00030136,2]
[312841986,1706335842669,-500.0,0.00030136,2]
[312841987,1706335842679,-500.0,0.00030136,2]
[312841988,1706335842688,-500.0,0.00030136,2]
[312841989,1706335842697,-234.68992224,0.00030136,2]
[312841990,1706335842706,-500.0,0.00030136,2]
[312841991,1706335842715,-5739.97,0.00030136,2]
[312841992,1706335842725,-500.0,0.00030136,2]
[312841993,1706335842735,-500.0,0.00030136,2]
[312841994,1706335842744,-508.73,0.00030136,2]
[312841995,1706335842753,-500.0,0.00030136,2]
[312841996,1706335842763,-500.0,0.00030136,2]
[312841997,1706335842772,-203.79419012,0.00030136,2]
[312841998,1706335842782,-500.0,0.00030136,2]
[312841999,1706335842791,-500.0,0.00030136,2]
[312842000,1706335842800,-500.0,0.00030136,2]
[312842001,1706335842809,-500.0,0.00030136,2]
[312842002,1706335842819,-703.76,0.00030136,2]
[312842003,1706335842828,-500.0,0.00030136,2]
[312842004,1706335842837,-464.71978728,0.00030136,2]
[312842005,1706335842846,-500.0,0.00030136,2]
[312842006,1706335842855,-500.0,0.00030136,2]
[312842007,1706335842864,-151.0,0.00030136,2]
[312842008,1706335842873,-500.0,0.00030136,2]
[312842009,1706335842882,-151.0,0.00030136,2]
[312842010,1706335842891,-151.0,0.00030136,2]
[312842011,1706335842900,-151.0,0.00030136,2]
[312842012,1706335842910,-151.0,0.00030136,2]
[312842013,1706335842919,-500.0,0.00030136,2]
[312842014,1706335842928,-151.0,0.00030136,2]
[312842015,1706335842937,-151.0,0.00030136,2]
[312842016,1706335842947,-188.449836,0.00030136,2]
[312842017,1706335842956,-500.0,0.00030136,2]
[312842018,1706335842966,-738.51,0.00030136,2]
[312842019,1706335842975,-500.0,0.00030136,2]
[312842020,1706335842985,-500.0,0.00030136,2]
[312842021,1706335842994,-563.11,0.00030136,2]
[312842023,1706335843007,-1690.03,0.00030136,2]
[312842025,1706335843017,-500.0,0.00030136,2]
[312842027,1706335843027,-500.0,0.00030136,2]
[312842029,1706335843036,-500.0,0.00030136,2]
[312842030,1706335843046,-505.20684408,0.00030136,2]
[312842031,1706335843055,-500.0,0.00030136,2]
[312842032,1706335843065,-500.0,0.00030136,2]
[312842033,1706335843074,-211.800487,0.00030136,2]
[312842034,1706335843084,-211.800487,0.00030136,2]
[312842035,1706335843094,-211.800487,0.00030136,2]
[312842036,1706335843103,-211.800487,0.00030136,2]
[312842037,1706335843112,-211.800487,0.00030136,2]
[312842038,1706335843121,-211.800487,0.00030136,2]
[312842039,1706335843130,-211.800487,0.00030136,2]
[312842040,1706335843139,-211.800487,0.00030136,2]
[312842041,1706335843149,-211.800487,0.00030136,2]
[312842042,1706335843158,-211.800487,0.00030136,2]
[312842043,1706335843167,-500.0,0.00030136,2]
[312842044,1706335843176,-211.800487,0.00030136,2]
[312842045,1706335843185,-211.80048,0.00030136,2]
[312842046,1706335843195,-500.0,0.00030136,2]
[312842047,1706335843204,-303.29054723,0.00030136,2]
[312842048,1706335843214,-500.0,0.00030136,2]
[312842049,1706335843223,-500.0,0.00030136,2]
[312842051,1706335843232,-500.0,0.00030136,2]
[312842053,1706335843242,-500.0,0.00030136,2]
[312842055,1706335843251,-500.0,0.00030136,2]
[312842057,1706335843260,-2709.77,0.00030136,2]
[312842059,1706335843269,-500.0,0.00030136,2]
[312842060,1706335843278,-240.87352041,0.00030136,2]
[312842061,1706335843287,-500.0,0.00030136,2]
[312842062,1706335843296,-584.47,0.00030136,2]
[312842063,1706335843305,-500.0,0.00030136,2]
[312842064,1706335843315,-500.0,0.00030136,2]
[312842065,1706335843323,-500.0,0.00030136,2]
[312842066,1706335843332,-505.60927441,0.00030136,2]
[312842067,1706335843342,-500.0,0.00030136,2]
[312842068,1706335843352,-500.0,0.00030136,2]
[312842069,1706335843361,-500.0,0.00030136,2]
[312842070,1706335843370,-2103.98,0.00030136,2]
[312842071,1706335843379,-500.0,0.00030136,2]
[312842072,1706335843388,-500.0,0.00030136,2]
[312842073,1706335843397,-500.0,0.00030136,2]
[312842074,1706335843406,-500.0,0.00030136,2]
[312842075,1706335843415,-500.0,0.00030136,2]
[312842076,1706335843424,-1446.48,0.00030136,2]
[312842077,1706335843433,-500.0,0.00030136,2]
[312842078,1706335843443,-500.0,0.00030136,2]
[312842079,1706335843452,-500.0,0.00030136,2]
[312842080,1706335843461,-500.0,0.00030136,2]
[312842081,1706335843470,-500.0,0.00030136,2]
[312842082,1706335843480,-1837.05,0.00030136,2]
[312842083,1706335843489,-230.99679525,0.00030136,2]
[312842084,1706335843498,-500.0,0.00030136,2]
[312842085,1706335843507,-1047.1,0.00030136,2]
[312842086,1706335843516,-150.0,0.00030136,2]
[312842087,1706335843525,-500.0,0.00030136,2]
[312842088,1706335843534,-220.70883928,0.00030136,2]